[Event "*** Titled Tuesday Blitz"]
[Site "Chess.com"]
[Date "2021.03.02"]
[Round "10"]
[White "klimkoj"]
[Black "esapunov"]
[Result "1-0"]
[WhiteElo "2616"]
[BlackElo "2702"]
[TimeControl "180+1"]
[EndTime "11:58:13 PST"]
[Termination "klimkoj won by resignation"]

1. d4 {[%clk 0:03:00.9]} 1... Nf6 {[%clk 0:02:59.6]} 2. c4 {[%clk 0:03:01.1]}
2... g6 {[%clk 0:02:59.9]} 3. g3 {[%clk 0:03:00.8]} 3... Bg7 {[%clk 0:03:00.4]}
4. Bg2 {[%clk 0:03:01.1]} 4... O-O {[%clk 0:03:01]} 5. Nf3 {[%clk 0:03:01.5]}
5... d6 {[%clk 0:03:01.5]} 6. O-O {[%clk 0:03:01.6]} 6... Nc6 {[%clk 0:03:02.2]}
7. Nc3 {[%clk 0:03:01.4]} 7... Bf5 {[%clk 0:03:01.1]} 8. b3 {[%clk 0:02:53.9]}
8... Ne4 {[%clk 0:03:00.7]} 9. Bb2 {[%clk 0:02:51]} 9... Nxc3 {[%clk 0:03:00.4]}
10. Bxc3 {[%clk 0:02:51.9]} 10... Be4 {[%clk 0:03:01.1]} 11. Qd2 {[%clk
0:02:50.1]} 11... d5 {[%clk 0:03:00.9]} 12. Rac1 {[%clk 0:02:42.9]} 12... e6
{[%clk 0:03:00.5]} 13. Rfd1 {[%clk 0:02:40.8]} 13... Re8 {[%clk 0:02:59.9]} 14.
Nh4 {[%clk 0:02:40.3]} 14... Bxg2 {[%clk 0:02:59.1]} 15. Nxg2 {[%clk 0:02:41.2]}
15... Ne7 {[%clk 0:02:59.1]} 16. Qc2 {[%clk 0:02:35.5]} 16... c6 {[%clk
0:02:53.1]} 17. e4 {[%clk 0:02:34.3]} 17... Qb6 {[%clk 0:02:46.7]} 18. c5 {[%clk
0:02:13.3]} 18... Qc7 {[%clk 0:02:37.4]} 19. e5 {[%clk 0:02:13.3]} 19... a5
{[%clk 0:02:33.3]} 20. f4 {[%clk 0:02:01.8]} 20... b6 {[%clk 0:02:31.8]} 21. Bb2
{[%clk 0:01:40.8]} 21... a4 {[%clk 0:02:15.8]} 22. b4 {[%clk 0:01:21.6]} 22...
a3 {[%clk 0:02:15.1]} 23. Bc3 {[%clk 0:01:20.3]} 23... Reb8 {[%clk 0:02:10.6]}
24. Rb1 {[%clk 0:01:17.7]} 24... h5 {[%clk 0:02:10]} 25. Ne3 {[%clk 0:01:14.9]}
25... Qa7 {[%clk 0:02:08.4]} 26. Be1 {[%clk 0:00:51.4]} 26... Qa6 {[%clk
0:02:00.1]} 27. Kf2 {[%clk 0:00:47.3]} 27... Rb7 {[%clk 0:01:57.7]} 28. Qe2
{[%clk 0:00:41.8]} 28... Qa4 {[%clk 0:01:54.6]} 29. Qc2 {[%clk 0:00:38.7]} 29...
Qa7 {[%clk 0:01:50.3]} 30. Rd3 {[%clk 0:00:33.6]} 30... Bf8 {[%clk 0:01:39.9]}
31. Rdb3 {[%clk 0:00:32.3]} 31... Qa4 {[%clk 0:01:36.5]} 32. Qd3 {[%clk
0:00:26.2]} 32... Nf5 {[%clk 0:01:26]} 33. Nc2 {[%clk 0:00:18.9]} 33... Qa6
{[%clk 0:01:20.2]} 34. Qxa6 {[%clk 0:00:15.8]} 34... Rxa6 {[%clk 0:01:20]} 35.
b5 {[%clk 0:00:16.1]} 35... cxb5 {[%clk 0:01:07.6]} 36. Rxb5 {[%clk 0:00:16.9]}
36... Ra4 {[%clk 0:01:06]} 37. Rxb6 {[%clk 0:00:16.2]} 37... Rba7 {[%clk
0:01:03.9]} 38. R1b4 {[%clk 0:00:15.2]} 38... Kg7 {[%clk 0:01:01.1]} 39. Rxa4
{[%clk 0:00:07.8]} 39... Rxa4 {[%clk 0:01:00.6]} 40. Bb4 {[%clk 0:00:08.3]}
40... Nxd4 {[%clk 0:00:50.3]} 41. Nxd4 {[%clk 0:00:08.2]} 41... Rxb4 {[%clk
0:00:50.5]} 42. Rxb4 {[%clk 0:00:08.1]} 42... Bxc5 {[%clk 0:00:51.2]} 43. Ra4
{[%clk 0:00:08.7]} 1-0

[Event "*** Titled Tuesday Blitz"]
[Site "Chess.com"]
[Date "2021.03.02"]
[Round "10"]
[White "Sven_Tica"]
[Black "WPWPWP-2015"]
[Result "1-0"]
[WhiteElo "2667"]
[BlackElo "2474"]
[TimeControl "180+1"]
[EndTime "11:58:13 PST"]
[Termination "Sven_Tica won on time"]

1. d4 {[%clk 0:03:00.9]} 1... Nf6 {[%clk 0:02:50.4]} 2. c4 {[%clk 0:03:01.3]}
2... c6 {[%clk 0:02:50]} 3. Nf3 {[%clk 0:03:01.1]} 3... d5 {[%clk 0:02:49.9]} 4.
Qc2 {[%clk 0:03:01.6]} 4... dxc4 {[%clk 0:02:48.4]} 5. Qxc4 {[%clk 0:03:01.3]}
5... Bf5 {[%clk 0:02:48.8]} 6. Nbd2 {[%clk 0:03:01.3]} 6... Nbd7 {[%clk
0:02:48.6]} 7. g3 {[%clk 0:03:01.6]} 7... e6 {[%clk 0:02:47.9]} 8. Bg2 {[%clk
0:03:02]} 8... Be7 {[%clk 0:02:48.1]} 9. O-O {[%clk 0:03:02.6]} 9... O-O {[%clk
0:02:47.9]} 10. Qb3 {[%clk 0:03:03.3]} 10... b5 {[%clk 0:02:44.7]} 11. Ne5
{[%clk 0:02:59.3]} 11... Nxe5 {[%clk 0:02:25.3]} 12. dxe5 {[%clk 0:03:00.2]}
12... Nd7 {[%clk 0:02:25.3]} 13. Bxc6 {[%clk 0:02:59.9]} 13... Rc8 {[%clk
0:02:25.3]} 14. Bg2 {[%clk 0:02:54.9]} 14... Nxe5 {[%clk 0:02:11]} 15. Qxb5
{[%clk 0:02:51.3]} 15... Rc5 {[%clk 0:02:10.3]} 16. Qb7 {[%clk 0:02:44.6]} 16...
Bg4 {[%clk 0:01:52.6]} 17. Nb3 {[%clk 0:02:39.3]} 17... Rc2 {[%clk 0:01:42.8]}
18. Bf4 {[%clk 0:02:32.4]} 18... Bf6 {[%clk 0:01:31.6]} 19. Rfd1 {[%clk
0:02:27.3]} 19... Qb6 {[%clk 0:01:24.2]} 20. Qxb6 {[%clk 0:02:22.3]} 20... axb6
{[%clk 0:01:25.1]} 21. f3 {[%clk 0:02:22.3]} 21... Bh5 {[%clk 0:01:11.2]} 22.
Rd2 {[%clk 0:02:18.1]} 22... Rfc8 {[%clk 0:00:56.7]} 23. Rad1 {[%clk 0:02:15.5]}
23... Rxd2 {[%clk 0:00:37.5]} 24. Rxd2 {[%clk 0:02:04.1]} 24... g5 {[%clk
0:00:15.2]} 25. Be3 {[%clk 0:01:53.2]} 25... Bg6 {[%clk 0:00:14.7]} 26. Bd4
{[%clk 0:01:46.7]} 26... Bg7 {[%clk 0:00:06.6]} 27. e4 {[%clk 0:01:41]} 27...
Nc4 {[%clk 0:00:05.8]} 28. Rc2 {[%clk 0:01:40.4]} 28... e5 {[%clk 0:00:05.9]}
29. Bh3 {[%clk 0:01:32.1]} 29... Rc6 {[%clk 0:00:03.2]} 30. Bxb6 {[%clk
0:01:27.2]} 30... Rxb6 {[%clk 0:00:02.9]} 31. Rxc4 {[%clk 0:01:27.2]} 31... h5
{[%clk 0:00:03.1]} 32. Rc8+ {[%clk 0:01:24.9]} 32... Kh7 {[%clk 0:00:03.1]} 33.
Bf5 {[%clk 0:01:25]} 33... h4 {[%clk 0:00:02.2]} 34. g4 {[%clk 0:01:19.9]} 34...
Rd6 {[%clk 0:00:02.1]} 35. Rc2 {[%clk 0:01:19.2]} 35... Rd1+ {[%clk 0:00:01.7]}
36. Kg2 {[%clk 0:01:19.3]} 36... Bf8 {[%clk 0:00:02.6]} 37. Nd2 {[%clk
0:01:00.4]} 37... Ra1 {[%clk 0:00:02.1]} 38. Nc4 {[%clk 0:00:56.7]} 38... Bb4
{[%clk 0:00:01.6]} 39. Nxe5 {[%clk 0:00:55.9]} 39... Kg7 {[%clk 0:00:01.5]} 40.
Bxg6 {[%clk 0:00:54.2]} 40... fxg6 {[%clk 0:00:01.9]} 41. a3 {[%clk 0:00:53.9]}
41... Bd6 {[%clk 0:00:01.2]} 42. Nxg6 {[%clk 0:00:52.4]} 1-0

[Event "*** Titled Tuesday Blitz"]
[Site "Chess.com"]
[Date "2021.03.02"]
[Round "10"]
[White "Grieve72"]
[Black "korkmaz16"]
[Result "1-0"]
[WhiteElo "2534"]
[BlackElo "2411"]
[TimeControl "180+1"]
[EndTime "11:58:14 PST"]
[Termination "Grieve72 won by checkmate"]

1. d4 {[%clk 0:03:00.9]} 1... Nf6 {[%clk 0:02:59.6]} 2. Bg5 {[%clk 0:03:01.3]}
2... Ne4 {[%clk 0:02:58.4]} 3. Bf4 {[%clk 0:03:01.6]} 3... d5 {[%clk 0:02:58.4]}
4. e3 {[%clk 0:03:01.3]} 4... c5 {[%clk 0:02:56.1]} 5. Bd3 {[%clk 0:03:01.7]}
5... cxd4 {[%clk 0:02:50.3]} 6. exd4 {[%clk 0:02:58]} 6... Nf6 {[%clk
0:02:46.1]} 7. c3 {[%clk 0:02:51.9]} 7... e6 {[%clk 0:02:45.3]} 8. Nd2 {[%clk
0:02:40.6]} 8... Bd6 {[%clk 0:02:43.5]} 9. Bg5 {[%clk 0:02:28.3]} 9... O-O
{[%clk 0:02:41.8]} 10. Ngf3 {[%clk 0:02:26.6]} 10... Nbd7 {[%clk 0:02:40.9]} 11.
O-O {[%clk 0:02:25.5]} 11... b6 {[%clk 0:02:27.9]} 12. Qe2 {[%clk 0:02:20.2]}
12... Bb7 {[%clk 0:02:15.5]} 13. Ne5 {[%clk 0:02:19.7]} 13... Be7 {[%clk
0:02:12.2]} 14. f4 {[%clk 0:02:04.9]} 14... a6 {[%clk 0:01:12.4]} 15. Rf3 {[%clk
0:02:03.9]} 15... h6 {[%clk 0:00:52.9]} 16. Rh3 {[%clk 0:01:25.4]} 16... hxg5
{[%clk 0:00:40.1]} 17. fxg5 {[%clk 0:01:22.7]} 17... g6 {[%clk 0:00:19.1]} 18.
gxf6 {[%clk 0:00:58.5]} 18... Bxf6 {[%clk 0:00:18.1]} 19. Rf1 {[%clk 0:00:53.5]}
19... Nxe5 {[%clk 0:00:14.3]} 20. dxe5 {[%clk 0:00:52.5]} 20... Bg7 {[%clk
0:00:14.9]} 21. Nf3 {[%clk 0:00:38.7]} 21... b5 {[%clk 0:00:15.3]} 22. Qe3
{[%clk 0:00:26.9]} 22... b4 {[%clk 0:00:12.7]} 23. Ng5 {[%clk 0:00:26.4]} 23...
bxc3 {[%clk 0:00:10.4]} 24. bxc3 {[%clk 0:00:27.3]} 24... Rc8 {[%clk 0:00:08.3]}
25. Qf4 {[%clk 0:00:19.4]} 25... Rxc3 {[%clk 0:00:05.7]} 26. Qh4 {[%clk
0:00:19.2]} 26... Qb6+ {[%clk 0:00:02.8]} 27. Kh1 {[%clk 0:00:19.1]} 27... Rfc8
{[%clk 0:00:01.8]} 28. Qh7+ {[%clk 0:00:17.3]} 28... Kf8 {[%clk 0:00:02.3]} 29.
Rxf7+ {[%clk 0:00:18.2]} 29... Ke8 {[%clk 0:00:02.9]} 30. Qg8+ {[%clk
0:00:19.1]} 30... Bf8 {[%clk 0:00:03.4]} 31. Qxf8# {[%clk 0:00:19.9]} 1-0

[Event "*** Titled Tuesday Blitz"]
[Site "Chess.com"]
[Date "2021.03.02"]
[Round "10"]
[White "Gahan-MG"]
[Black "AldokhinIvan"]
[Result "1-0"]
[WhiteElo "2657"]
[BlackElo "2532"]
[TimeControl "180+1"]
[EndTime "11:58:15 PST"]
[Termination "Gahan-MG won on time"]

1. e4 {[%clk 0:03:00.9]} 1... c5 {[%clk 0:02:59.7]} 2. c3 {[%clk 0:03:00.8]}
2... d5 {[%clk 0:02:59.2]} 3. exd5 {[%clk 0:03:00.3]} 3... Qxd5 {[%clk
0:02:59.6]} 4. d4 {[%clk 0:02:59.9]} 4... Nf6 {[%clk 0:03:00.1]} 5. Nf3 {[%clk
0:02:59.5]} 5... cxd4 {[%clk 0:03:00.2]} 6. cxd4 {[%clk 0:02:59.2]} 6... e6
{[%clk 0:03:00.3]} 7. Nc3 {[%clk 0:02:58.2]} 7... Qd6 {[%clk 0:03:00.7]} 8. a3
{[%clk 0:02:57.3]} 8... Be7 {[%clk 0:03:00.8]} 9. Bd3 {[%clk 0:02:56.8]} 9...
O-O {[%clk 0:03:00.5]} 10. O-O {[%clk 0:02:57.1]} 10... Rd8 {[%clk 0:03:00.8]}
11. Qe2 {[%clk 0:02:56.3]} 11... Nc6 {[%clk 0:03:00]} 12. Be3 {[%clk 0:02:50.2]}
12... a6 {[%clk 0:03:00.2]} 13. Rfd1 {[%clk 0:02:49.8]} 13... b5 {[%clk
0:02:59.2]} 14. Rac1 {[%clk 0:02:49.4]} 14... Bb7 {[%clk 0:02:58.5]} 15. Bb1
{[%clk 0:02:47.9]} 15... Rac8 {[%clk 0:02:35.6]} 16. Ba2 {[%clk 0:02:43.6]}
16... b4 {[%clk 0:02:32.9]} 17. Na4 {[%clk 0:02:38.7]} 17... bxa3 {[%clk
0:02:21.9]} 18. Nc5 {[%clk 0:02:38.7]} 18... axb2 {[%clk 0:02:01]} 19. Nxb7
{[%clk 0:02:07.7]} 19... bxc1=Q {[%clk 0:01:59.9]} 20. Nxd6 {[%clk 0:01:49.9]}
20... Qa3 {[%clk 0:01:30.3]} 21. Nxc8 {[%clk 0:01:40.5]} 21... Rxc8 {[%clk
0:01:26.7]} 22. Rc1 {[%clk 0:01:40.6]} 22... Bf8 {[%clk 0:01:05.6]} 23. h3
{[%clk 0:01:34.3]} 23... Nxd4 {[%clk 0:01:00.2]} 24. Nxd4 {[%clk 0:01:16.8]}
24... Rxc1+ {[%clk 0:00:58]} 25. Kh2 {[%clk 0:01:07]} 25... Rc8 {[%clk
0:00:45.9]} 26. Nxe6 {[%clk 0:01:04.2]} 26... Bd6+ {[%clk 0:00:32.6]} 27. g3
{[%clk 0:01:02.7]} 27... Re8 {[%clk 0:00:28.4]} 28. Ng5 {[%clk 0:01:01.9]} 28...
Kf8 {[%clk 0:00:12.5]} 29. Nxf7 {[%clk 0:00:55.8]} 29... Ne4 {[%clk 0:00:08.1]}
30. Nxd6 {[%clk 0:00:49.9]} 30... Qxd6 {[%clk 0:00:08.5]} 31. Qc4 {[%clk
0:00:37.4]} 31... Ke7 {[%clk 0:00:01.6]} 32. Qxe4+ {[%clk 0:00:36]} 32... Kd8
{[%clk 0:00:02]} 33. Bg5+ {[%clk 0:00:30.6]} 33... Kd7 {[%clk 0:00:01.6]} 34.
Qb7+ {[%clk 0:00:30.6]} 1-0

[Event "*** Titled Tuesday Blitz"]
[Site "Chess.com"]
[Date "2021.03.02"]
[Round "10"]
[White "Kozok"]
[Black "NikolaGry"]
[Result "0-1"]
[WhiteElo "2453"]
[BlackElo "2604"]
[TimeControl "180+1"]
[EndTime "11:58:16 PST"]
[Termination "NikolaGry won on time"]

1. e4 {[%clk 0:03:00.9]} 1... e6 {[%clk 0:02:59.2]} 2. d4 {[%clk 0:03:00.9]}
2... Ne7 {[%clk 0:02:59.8]} 3. Nc3 {[%clk 0:02:56.8]} 3... d5 {[%clk 0:03:00.2]}
4. e5 {[%clk 0:02:50.5]} 4... c5 {[%clk 0:02:59.8]} 5. Nb5 {[%clk 0:02:32.6]}
5... Nec6 {[%clk 0:02:55.9]} 6. Bg5 {[%clk 0:02:27.3]} 6... Qxg5 {[%clk
0:02:27.6]} 7. Nc7+ {[%clk 0:02:25]} 7... Kd8 {[%clk 0:02:27.4]} 8. Nxa8 {[%clk
0:02:25.9]} 8... Nxd4 {[%clk 0:02:24.2]} 9. Nf3 {[%clk 0:02:17.2]} 9... Qf4
{[%clk 0:02:07.8]} 10. c3 {[%clk 0:02:06.3]} 10... Nxf3+ {[%clk 0:02:06.8]} 11.
Qxf3 {[%clk 0:02:06.6]} 11... Qxf3 {[%clk 0:02:05.8]} 12. gxf3 {[%clk
0:02:06.7]} 12... b6 {[%clk 0:02:03.1]} 13. a4 {[%clk 0:02:03.5]} 13... Bb7
{[%clk 0:01:42.9]} 14. a5 {[%clk 0:02:03.1]} 14... b5 {[%clk 0:01:39.9]} 15. Nb6
{[%clk 0:01:55.8]} 15... Kc7 {[%clk 0:01:28.2]} 16. Nxd5+ {[%clk 0:01:17]} 16...
Bxd5 {[%clk 0:01:23.5]} 17. Bxb5 {[%clk 0:01:16.7]} 17... Bxf3 {[%clk
0:01:19.8]} 18. Rg1 {[%clk 0:01:13.4]} 18... Nc6 {[%clk 0:01:10]} 19. Bxc6
{[%clk 0:01:02.1]} 19... Bxc6 {[%clk 0:01:05.2]} 20. O-O-O {[%clk 0:01:00]}
20... g6 {[%clk 0:01:03]} 21. Kc2 {[%clk 0:00:56.1]} 21... h5 {[%clk 0:00:50.3]}
22. b3 {[%clk 0:00:47.8]} 22... Bh6 {[%clk 0:00:46.2]} 23. f4 {[%clk 0:00:30.1]}
23... Bxf4 {[%clk 0:00:37.5]} 24. Rdf1 {[%clk 0:00:29.7]} 24... g5 {[%clk
0:00:36.9]} 25. h4 {[%clk 0:00:29.5]} 25... Be4+ {[%clk 0:00:33.9]} 26. Kb2
{[%clk 0:00:28.9]} 26... Bg6 {[%clk 0:00:32.8]} 27. hxg5 {[%clk 0:00:28.3]}
27... Bxe5 {[%clk 0:00:33.1]} 28. Re1 {[%clk 0:00:22.3]} 28... Bd6 {[%clk
0:00:31.6]} 29. Re3 {[%clk 0:00:12.9]} 29... h4 {[%clk 0:00:30.3]} 30. b4 {[%clk
0:00:06.5]} 30... h3 {[%clk 0:00:28.2]} 31. Rh1 {[%clk 0:00:03.9]} 31... h2
{[%clk 0:00:26.2]} 32. Re2 {[%clk 0:00:02.3]} 32... Rb8 {[%clk 0:00:25.1]} 0-1

[Event "*** Titled Tuesday Blitz"]
[Site "Chess.com"]
[Date "2021.03.02"]
[Round "10"]
[White "shaheus"]
[Black "HrvojeZagreb"]
[Result "1-0"]
[WhiteElo "2413"]
[BlackElo "2256"]
[TimeControl "180+1"]
[EndTime "11:58:16 PST"]
[Termination "shaheus won on time"]

1. e4 {[%clk 0:03:00.9]} 1... e6 {[%clk 0:02:59.6]} 2. Nf3 {[%clk 0:03:00.9]}
2... d5 {[%clk 0:02:59.6]} 3. Nc3 {[%clk 0:03:01.3]} 3... dxe4 {[%clk
0:02:59.6]} 4. Nxe4 {[%clk 0:03:01.1]} 4... Nd7 {[%clk 0:03:00.2]} 5. Qe2 {[%clk
0:03:00.9]} 5... Ngf6 {[%clk 0:02:59.6]} 6. g3 {[%clk 0:03:00]} 6... b6 {[%clk
0:02:43.4]} 7. Bg2 {[%clk 0:02:58.4]} 7... Bb7 {[%clk 0:02:40.5]} 8. d3 {[%clk
0:02:54.9]} 8... Nxe4 {[%clk 0:02:21.2]} 9. dxe4 {[%clk 0:02:53.2]} 9... Be7
{[%clk 0:02:19.7]} 10. O-O {[%clk 0:02:52.5]} 10... O-O {[%clk 0:02:19.1]} 11.
Rd1 {[%clk 0:02:52.1]} 11... Qc8 {[%clk 0:02:16.9]} 12. b3 {[%clk 0:02:38]}
12... Bf6 {[%clk 0:02:11.4]} 13. Rb1 {[%clk 0:02:28.9]} 13... a5 {[%clk
0:02:04.8]} 14. Bb2 {[%clk 0:02:15.4]} 14... a4 {[%clk 0:01:57.3]} 15. e5 {[%clk
0:02:08.7]} 15... Be7 {[%clk 0:01:54]} 16. Rd2 {[%clk 0:02:03]} 16... axb3
{[%clk 0:01:50.2]} 17. axb3 {[%clk 0:02:01.4]} 17... Ra2 {[%clk 0:01:48.1]} 18.
Bc3 {[%clk 0:01:55.6]} 18... Nc5 {[%clk 0:01:38.2]} 19. Nd4 {[%clk 0:01:42.6]}
19... Bxg2 {[%clk 0:01:39.1]} 20. Kxg2 {[%clk 0:01:42.4]} 20... Qb7+ {[%clk
0:01:30.3]} 21. Qf3 {[%clk 0:01:40.7]} 21... Qxf3+ {[%clk 0:01:27.9]} 22. Kxf3
{[%clk 0:01:40.9]} 22... f6 {[%clk 0:01:03.6]} 23. Nc6 {[%clk 0:01:35.8]} 23...
fxe5+ {[%clk 0:01:01.9]} 24. Kg2 {[%clk 0:01:28.8]} 24... Bg5 {[%clk 0:00:47.9]}
25. Re2 {[%clk 0:01:24.9]} 25... e4 {[%clk 0:00:47.4]} 26. h4 {[%clk 0:01:20.5]}
26... Bf6 {[%clk 0:00:41.9]} 27. Bb4 {[%clk 0:01:15]} 27... e3 {[%clk
0:00:20.1]} 28. fxe3 {[%clk 0:01:01.2]} 28... Ne4 {[%clk 0:00:13.7]} 29. Bxf8
{[%clk 0:00:58]} 29... Nc3 {[%clk 0:00:13.9]} 30. Rbe1 {[%clk 0:00:54.5]} 30...
Nxe2 {[%clk 0:00:11.9]} 31. Rxe2 {[%clk 0:00:54.2]} 31... Kxf8 {[%clk
0:00:12.1]} 32. e4 {[%clk 0:00:51.5]} 32... Bc3 {[%clk 0:00:10.7]} 33. Kf3
{[%clk 0:00:43.7]} 33... Ke8 {[%clk 0:00:10.9]} 34. Kf4 {[%clk 0:00:39.4]} 34...
Kd7 {[%clk 0:00:10.5]} 35. Ne5+ {[%clk 0:00:39.1]} 35... Ke7 {[%clk 0:00:05.4]}
36. Nd3 {[%clk 0:00:32.7]} 1-0

[Event "*** Titled Tuesday Blitz"]
[Site "Chess.com"]
[Date "2021.03.02"]
[Round "10"]
[White "GelmanAlexander"]
[Black "GM_Crest"]
[Result "0-1"]
[WhiteElo "2576"]
[BlackElo "2787"]
[TimeControl "180+1"]
[EndTime "11:58:22 PST"]
[Termination "GM_Crest won on time"]

1. d4 {[%clk 0:03:00.9]} 1... Nf6 {[%clk 0:02:58.5]} 2. Nc3 {[%clk 0:03:00.5]}
2... d5 {[%clk 0:02:57.8]} 3. Bf4 {[%clk 0:03:00.3]} 3... c5 {[%clk 0:02:48.7]}
4. e3 {[%clk 0:03:00.2]} 4... cxd4 {[%clk 0:02:30.7]} 5. exd4 {[%clk 0:03:00.1]}
5... Bg4 {[%clk 0:02:30.7]} 6. f3 {[%clk 0:02:58.2]} 6... Bd7 {[%clk 0:02:30.2]}
7. Qd2 {[%clk 0:02:39.7]} 7... Nc6 {[%clk 0:02:28.1]} 8. g4 {[%clk 0:02:38]}
8... e6 {[%clk 0:02:14.5]} 9. h4 {[%clk 0:02:37.7]} 9... Qb6 {[%clk 0:02:02.7]}
10. O-O-O {[%clk 0:02:00.5]} 10... Rc8 {[%clk 0:02:01.4]} 11. h5 {[%clk
0:01:38.7]} 11... h6 {[%clk 0:02:00.8]} 12. Kb1 {[%clk 0:01:32.1]} 12... Bb4
{[%clk 0:01:53.1]} 13. Nge2 {[%clk 0:01:27.7]} 13... Na5 {[%clk 0:01:52]} 14.
Ka1 {[%clk 0:01:10.3]} 14... Nc4 {[%clk 0:01:49.8]} 15. Qc1 {[%clk 0:01:10.7]}
15... Qa5 {[%clk 0:01:48.5]} 16. Nb1 {[%clk 0:01:03.5]} 16... b5 {[%clk
0:01:41]} 17. Ng3 {[%clk 0:00:43.5]} 17... Rc6 {[%clk 0:01:33.6]} 18. Bxc4
{[%clk 0:00:36.7]} 18... dxc4 {[%clk 0:01:23.3]} 19. c3 {[%clk 0:00:36.6]} 19...
Be7 {[%clk 0:01:20.2]} 20. g5 {[%clk 0:00:28.2]} 20... hxg5 {[%clk 0:01:19.6]}
21. Bxg5 {[%clk 0:00:28.1]} 21... b4 {[%clk 0:01:20]} 22. cxb4 {[%clk
0:00:26.5]} 22... Bxb4 {[%clk 0:01:18.7]} 23. h6 {[%clk 0:00:26]} 23... Bf8
{[%clk 0:00:39.2]} 24. hxg7 {[%clk 0:00:22.6]} 24... Bxg7 {[%clk 0:00:39.3]} 25.
Rxh8+ {[%clk 0:00:23]} 25... Bxh8 {[%clk 0:00:39.5]} 26. Rh1 {[%clk 0:00:18.4]}
26... Bg7 {[%clk 0:00:38.8]} 27. Ne4 {[%clk 0:00:15.1]} 27... Nd5 {[%clk
0:00:34.7]} 28. Bd2 {[%clk 0:00:11.7]} 28... Qb6 {[%clk 0:00:27.9]} 29. Qg1
{[%clk 0:00:10.1]} 29... Qxd4 {[%clk 0:00:24.7]} 30. Qxd4 {[%clk 0:00:04.8]}
30... Bxd4 {[%clk 0:00:24.7]} 31. Nbc3 {[%clk 0:00:05.7]} 31... Nb4 {[%clk
0:00:19.5]} 32. a3 {[%clk 0:00:04.5]} 32... Nd3 {[%clk 0:00:19.1]} 33. Rh7
{[%clk 0:00:01.9]} 33... Rb6 {[%clk 0:00:18.9]} 0-1

[Event "*** Titled Tuesday Blitz"]
[Site "Chess.com"]
[Date "2021.03.02"]
[Round "10"]
[White "dodorox"]
[Black "ObligatePawnivore"]
[Result "0-1"]
[WhiteElo "2134"]
[BlackElo "1867"]
[TimeControl "180+1"]
[EndTime "11:58:24 PST"]
[Termination "ObligatePawnivore won on time"]

1. d4 {[%clk 0:03:00.9]} 1... e6 {[%clk 0:02:58.9]} 2. c4 {[%clk 0:03:01]} 2...
Nf6 {[%clk 0:02:58.4]} 3. Nc3 {[%clk 0:03:00.5]} 3... Bb4 {[%clk 0:02:58.5]} 4.
e3 {[%clk 0:03:00.6]} 4... b6 {[%clk 0:02:55.9]} 5. Ne2 {[%clk 0:02:58.5]} 5...
c5 {[%clk 0:02:55.4]} 6. a3 {[%clk 0:02:57.5]} 6... Ba5 {[%clk 0:02:55.4]} 7.
Ng3 {[%clk 0:02:30.2]} 7... Bxc3+ {[%clk 0:02:51.1]} 8. bxc3 {[%clk 0:02:30]}
8... Bb7 {[%clk 0:02:44.4]} 9. Be2 {[%clk 0:02:28.7]} 9... Bxg2 {[%clk
0:02:41.3]} 10. Rg1 {[%clk 0:02:25.4]} 10... Bb7 {[%clk 0:02:34.3]} 11. a4
{[%clk 0:02:15.3]} 11... Nc6 {[%clk 0:02:31.5]} 12. Bf3 {[%clk 0:02:08.3]} 12...
Qc7 {[%clk 0:02:04.5]} 13. d5 {[%clk 0:01:36.9]} 13... Ne5 {[%clk 0:01:50]} 14.
Nh5 {[%clk 0:00:53]} 14... Nxh5 {[%clk 0:01:12.2]} 15. Bxh5 {[%clk 0:00:52.9]}
15... g6 {[%clk 0:01:05.8]} 16. Be2 {[%clk 0:00:50.1]} 16... Ba6 {[%clk
0:00:54.8]} 17. Qb3 {[%clk 0:00:21.8]} 17... exd5 {[%clk 0:00:49]} 18. cxd5
{[%clk 0:00:20.2]} 18... Bxe2 {[%clk 0:00:46.7]} 19. Kxe2 {[%clk 0:00:19.4]}
19... c4 {[%clk 0:00:47]} 20. Qc2 {[%clk 0:00:14.7]} 20... Nd3 {[%clk
0:00:43.1]} 21. Rg2 {[%clk 0:00:12.6]} 21... O-O {[%clk 0:00:39.9]} 22. Ba3
{[%clk 0:00:12.1]} 22... Rfe8 {[%clk 0:00:39.6]} 23. Rd1 {[%clk 0:00:11.3]}
23... Nf4+ {[%clk 0:00:39.1]} 24. Kf1 {[%clk 0:00:10.2]} 24... Nxg2 {[%clk
0:00:39]} 25. Kxg2 {[%clk 0:00:11.1]} 25... Qe5 {[%clk 0:00:37.1]} 26. Qd2
{[%clk 0:00:06.8]} 26... Qe4+ {[%clk 0:00:35]} 27. Kg1 {[%clk 0:00:06.7]} 27...
Re5 {[%clk 0:00:33.8]} 28. f4 {[%clk 0:00:06.2]} 28... Rh5 {[%clk 0:00:31.4]}
29. Re1 {[%clk 0:00:05.3]} 29... Rh4 {[%clk 0:00:28.6]} 30. Qg2 {[%clk
0:00:03.7]} 30... Qf5 {[%clk 0:00:21.7]} 31. h3 {[%clk 0:00:03.1]} 31... Rxh3
{[%clk 0:00:19.4]} 32. Kf2 {[%clk 0:00:03.4]} 32... Qh5 {[%clk 0:00:17.4]} 0-1